[Event "*** Titled Tuesday Blitz"]
[Site "Chess.com"]
[Date "2020.05.05"]
[Round "7"]
[White "UCantHandleDenker"]
[Black "Trickov"]
[Result "1-0"]
[WhiteElo "2563"]
[BlackElo "2286"]
[TimeControl "180+1"]
[EndTime "11:20:38 PDT"]
[Termination "UCantHandleDenker won on time"]

1. Nf3 {[%clk 0:03:00.2]} 1... d5 {[%clk 0:02:59.1]} 2. g3 {[%clk 0:02:59.3]}
2... Nf6 {[%clk 0:02:59]} 3. Bg2 {[%clk 0:02:59.7]} 3... c6 {[%clk 0:02:50.9]}
4. O-O {[%clk 0:03:00.6]} 4... Bf5 {[%clk 0:02:47.9]} 5. c4 {[%clk 0:03:00.4]}
5... e6 {[%clk 0:02:47.9]} 6. b3 {[%clk 0:03:00.2]} 6... Nbd7 {[%clk 0:02:47.9]}
7. Bb2 {[%clk 0:03:00.5]} 7... Bc5 {[%clk 0:02:47.5]} 8. d3 {[%clk 0:03:00.2]}
8... O-O {[%clk 0:02:47.1]} 9. Nbd2 {[%clk 0:02:59.7]} 9... h6 {[%clk
0:02:46.8]} 10. a3 {[%clk 0:03:00]} 10... a5 {[%clk 0:02:46.1]} 11. Ra2 {[%clk
0:02:59.7]} 11... Qe7 {[%clk 0:02:43.7]} 12. Qa1 {[%clk 0:02:59.4]} 12... Rfd8
{[%clk 0:02:36.8]} 13. Bd4 {[%clk 0:02:49.8]} 13... Bxd4 {[%clk 0:02:34.4]} 14.
Nxd4 {[%clk 0:02:49]} 14... Bg6 {[%clk 0:02:32.1]} 15. cxd5 {[%clk 0:02:45.2]}
15... exd5 {[%clk 0:02:31.4]} 16. N2f3 {[%clk 0:02:41.6]} 16... Re8 {[%clk
0:02:22.4]} 17. Bh3 {[%clk 0:02:38.3]} 17... Ne5 {[%clk 0:02:21.2]} 18. Rc1
{[%clk 0:02:28.1]} 18... Nxf3+ {[%clk 0:02:10.8]} 19. Nxf3 {[%clk 0:02:27.6]}
19... Qd6 {[%clk 0:02:00.8]} 20. Rac2 {[%clk 0:02:12.2]} 20... Re7 {[%clk
0:01:55.4]} 21. Nd4 {[%clk 0:02:12.1]} 21... Nd7 {[%clk 0:01:41]} 22. Bf5 {[%clk
0:02:04.1]} 22... Ne5 {[%clk 0:01:30.4]} 23. Bxg6 {[%clk 0:02:01.5]} 23... Qxg6
{[%clk 0:01:30.3]} 24. Qb2 {[%clk 0:01:55.1]} 24... Qf6 {[%clk 0:01:29.2]} 25.
Kg2 {[%clk 0:01:47.3]} 25... Ng4 {[%clk 0:01:27.5]} 26. Nf3 {[%clk 0:01:45.7]}
26... Qxb2 {[%clk 0:01:20.2]} 27. Rxb2 {[%clk 0:01:46.6]} 27... Rae8 {[%clk
0:01:19.2]} 28. Kf1 {[%clk 0:01:29.9]} 28... Ne5 {[%clk 0:01:08.7]} 29. Nd4
{[%clk 0:01:26.2]} 29... Ng4 {[%clk 0:00:55.5]} 30. Kg2 {[%clk 0:01:23.7]} 30...
Ra8 {[%clk 0:00:44.4]} 31. h3 {[%clk 0:01:17]} 31... Ne5 {[%clk 0:00:41.3]} 32.
b4 {[%clk 0:01:13.9]} 32... axb4 {[%clk 0:00:39.4]} 33. axb4 {[%clk 0:01:14.5]}
33... Ra4 {[%clk 0:00:29.3]} 34. Nf5 {[%clk 0:01:14.2]} 34... Rd7 {[%clk
0:00:28.4]} 35. b5 {[%clk 0:01:13.3]} 35... h5 {[%clk 0:00:25.1]} 36. bxc6
{[%clk 0:01:09.1]} 36... Nxc6 {[%clk 0:00:23.5]} 37. e3 {[%clk 0:00:55.9]} 37...
g6 {[%clk 0:00:22.1]} 38. Nh4 {[%clk 0:00:55.6]} 38... Ra3 {[%clk 0:00:19.9]}
39. d4 {[%clk 0:00:53.3]} 39... Ra4 {[%clk 0:00:19.6]} 40. Rcb1 {[%clk
0:00:52.6]} 40... Ra7 {[%clk 0:00:19.3]} 41. Nf3 {[%clk 0:00:52.8]} 41... Na5
{[%clk 0:00:18.6]} 42. Ne5 {[%clk 0:00:51.9]} 42... Rc7 {[%clk 0:00:18.8]} 43.
Rb5 {[%clk 0:00:50.3]} 43... Nc4 {[%clk 0:00:19.2]} 44. Rxd5 {[%clk 0:00:49]}
44... Nxe5 {[%clk 0:00:16]} 45. Rxe5 {[%clk 0:00:47.1]} 45... Ra2 {[%clk
0:00:15.9]} 46. Reb5 {[%clk 0:00:45.1]} 46... Rcc2 {[%clk 0:00:15.3]} 47. Rf1
{[%clk 0:00:45.2]} 47... Rab2 {[%clk 0:00:15.5]} 48. Rxb2 {[%clk 0:00:43.9]}
48... Rxb2 {[%clk 0:00:15.6]} 49. Rc1 {[%clk 0:00:44.4]} 49... Kg7 {[%clk
0:00:15.2]} 50. Rc7 {[%clk 0:00:44.6]} 50... b5 {[%clk 0:00:15]} 51. Rb7 {[%clk
0:00:43.9]} 51... Kf6 {[%clk 0:00:14.9]} 52. Kf3 {[%clk 0:00:41.9]} 52... b4
{[%clk 0:00:15]} 53. h4 {[%clk 0:00:41.8]} 53... b3 {[%clk 0:00:14.3]} 54. e4
{[%clk 0:00:37.6]} 54... Ke6 {[%clk 0:00:13.4]} 55. Ke3 {[%clk 0:00:36.9]} 55...
Rb1 {[%clk 0:00:13.5]} 56. f3 {[%clk 0:00:35.2]} 56... b2 {[%clk 0:00:11.3]} 57.
Kf4 {[%clk 0:00:35.5]} 57... Kd6 {[%clk 0:00:10.6]} 58. d5 {[%clk 0:00:35.3]}
58... f6 {[%clk 0:00:09.5]} 59. Rb3 {[%clk 0:00:32]} 59... Kc5 {[%clk
0:00:09.3]} 60. Rb8 {[%clk 0:00:31.8]} 60... Kd6 {[%clk 0:00:09.2]} 61. Rb5
{[%clk 0:00:25.3]} 61... Kc7 {[%clk 0:00:08.9]} 62. Rc5+ {[%clk 0:00:21]} 62...
Kd6 {[%clk 0:00:09]} 63. Rc2 {[%clk 0:00:21.9]} 63... Kd7 {[%clk 0:00:08.1]} 64.
Rd2 {[%clk 0:00:19.9]} 64... Kd6 {[%clk 0:00:08.2]} 65. Re2 {[%clk 0:00:20.3]}
65... Kd7 {[%clk 0:00:08.2]} 66. Rf2 {[%clk 0:00:20.2]} 66... Kd6 {[%clk
0:00:08.4]} 67. Rd2 {[%clk 0:00:20.8]} 67... Kd7 {[%clk 0:00:08.8]} 68. d6
{[%clk 0:00:21.1]} 68... Kd8 {[%clk 0:00:08.5]} 69. d7 {[%clk 0:00:21.5]} 69...
g5+ {[%clk 0:00:07.4]} 70. hxg5 {[%clk 0:00:21]} 70... fxg5+ {[%clk 0:00:07.7]}
71. Kxg5 {[%clk 0:00:21.5]} 71... Rg1 {[%clk 0:00:07.2]} 72. Rxb2 {[%clk
0:00:21.4]} 72... Rxg3+ {[%clk 0:00:07.1]} 73. Kf4 {[%clk 0:00:20.7]} 73... Rg7
{[%clk 0:00:06.9]} 74. Rh2 {[%clk 0:00:20.3]} 74... Rh7 {[%clk 0:00:06.7]} 75.
Kg5 {[%clk 0:00:20.6]} 75... Kxd7 {[%clk 0:00:06.6]} 76. Rxh5 {[%clk 0:00:20.6]}
76... Rf7 {[%clk 0:00:06.9]} 77. f4 {[%clk 0:00:20.4]} 77... Ke6 {[%clk
0:00:05.8]} 78. Rh6+ {[%clk 0:00:20.2]} 78... Ke7 {[%clk 0:00:05.8]} 79. f5
{[%clk 0:00:20.5]} 79... Kf8 {[%clk 0:00:05.8]} 80. f6 {[%clk 0:00:18.8]} 80...
Ra7 {[%clk 0:00:06.2]} 81. Rh8+ {[%clk 0:00:18.3]} 81... Kf7 {[%clk 0:00:05.7]}
82. Rh7+ {[%clk 0:00:18.8]} 82... Ke6 {[%clk 0:00:06.3]} 83. Rxa7 {[%clk
0:00:18.7]} 1-0

[Event "*** Titled Tuesday Blitz"]
[Site "Chess.com"]
[Date "2020.05.05"]
[Round "7"]
[White "Efremov_Vlad"]
[Black "Abund"]
[Result "0-1"]
[WhiteElo "2138"]
[BlackElo "2615"]
[TimeControl "180+1"]
[EndTime "11:20:45 PDT"]
[Termination "Abund won by resignation"]

1. d4 {[%clk 0:03:00.9]} 1... Nf6 {[%clk 0:02:57.7]} 2. c4 {[%clk 0:02:59.8]}
2... g6 {[%clk 0:02:56.3]} 3. Nf3 {[%clk 0:02:58.9]} 3... Bg7 {[%clk 0:02:40.6]}
4. g3 {[%clk 0:02:58.2]} 4... d5 {[%clk 0:02:34.8]} 5. cxd5 {[%clk 0:02:57]}
5... Nxd5 {[%clk 0:02:34]} 6. Bg2 {[%clk 0:02:56.6]} 6... O-O {[%clk 0:02:33.9]}
7. O-O {[%clk 0:02:55.8]} 7... Nb6 {[%clk 0:02:33.6]} 8. Nc3 {[%clk 0:02:54.3]}
8... Nc6 {[%clk 0:02:33.3]} 9. e3 {[%clk 0:02:54.1]} 9... Re8 {[%clk 0:02:32.9]}
10. a3 {[%clk 0:02:53.6]} 10... a5 {[%clk 0:02:31.7]} 11. Rb1 {[%clk 0:02:33.4]}
11... a4 {[%clk 0:02:08.7]} 12. Nd2 {[%clk 0:01:52.8]} 12... e5 {[%clk
0:02:01.4]} 13. d5 {[%clk 0:01:51.8]} 13... Na5 {[%clk 0:01:52.1]} 14. b4 {[%clk
0:01:47.9]} 14... axb3 {[%clk 0:01:49.7]} 15. Nxb3 {[%clk 0:01:47.7]} 15... Nac4
{[%clk 0:01:45]} 16. a4 {[%clk 0:01:08.7]} 16... e4 {[%clk 0:01:44.2]} 17. Nxe4
{[%clk 0:01:05.1]} 17... Bf5 {[%clk 0:01:40.8]} 18. Qc2 {[%clk 0:00:48.2]} 18...
Nd6 {[%clk 0:01:14.1]} 19. Nbc5 {[%clk 0:00:41.8]} 19... Nxd5 {[%clk 0:00:49.7]}
20. g4 {[%clk 0:00:24.2]} 20... Bxe4 {[%clk 0:00:44.5]} 21. Nxe4 {[%clk
0:00:23.2]} 21... Nxe4 {[%clk 0:00:43.6]} 22. Bxe4 {[%clk 0:00:23.2]} 22... Nc3
{[%clk 0:00:27.1]} 23. Bxb7 {[%clk 0:00:22.9]} 23... Rb8 {[%clk 0:00:19.6]} 24.
Rb3 {[%clk 0:00:20.6]} 24... Qd7 {[%clk 0:00:15.4]} 25. Bf3 {[%clk 0:00:18.8]}
25... Rxb3 {[%clk 0:00:08.2]} 26. Qxb3 {[%clk 0:00:18.7]} 26... Rd8 {[%clk
0:00:06]} 27. Bb2 {[%clk 0:00:17.3]} 27... Qxa4 {[%clk 0:00:05.8]} 28. Qxa4
{[%clk 0:00:16.6]} 28... Nxa4 {[%clk 0:00:06.7]} 29. Bxg7 {[%clk 0:00:16.1]}
29... Kxg7 {[%clk 0:00:07.6]} 30. Rc1 {[%clk 0:00:15]} 30... c5 {[%clk
0:00:03.8]} 31. Bc6 {[%clk 0:00:15]} 31... Nb6 {[%clk 0:00:03]} 32. Rxc5 {[%clk
0:00:14.6]} 32... Rc8 {[%clk 0:00:03.6]} 33. Rc2 {[%clk 0:00:13]} 33... Nd7
{[%clk 0:00:03.6]} 34. Be4 {[%clk 0:00:12.6]} 34... Rxc2 {[%clk 0:00:04.1]} 35.
Bxc2 {[%clk 0:00:13.3]} 35... Ne5 {[%clk 0:00:04.5]} 36. Kg2 {[%clk 0:00:13.1]}
36... Nxg4 {[%clk 0:00:04.2]} 37. h3 {[%clk 0:00:13.4]} 37... Ne5 {[%clk
0:00:04.6]} 38. Kg3 {[%clk 0:00:12.7]} 38... Nc4 {[%clk 0:00:05]} 39. Bd3 {[%clk
0:00:12.4]} 39... Nd6 {[%clk 0:00:05.3]} 40. Bc2 {[%clk 0:00:12.2]} 40... Kf6
{[%clk 0:00:05.7]} 41. Bd3 {[%clk 0:00:11.3]} 41... h6 {[%clk 0:00:06.1]} 42. h4
{[%clk 0:00:11.1]} 42... Ke5 {[%clk 0:00:06]} 43. f4+ {[%clk 0:00:10.5]} 43...
Kf6 {[%clk 0:00:06.3]} 44. e4 {[%clk 0:00:10.4]} 44... Nb7 {[%clk 0:00:06.6]}
45. f5 {[%clk 0:00:08.2]} 45... g5 {[%clk 0:00:06.5]} 46. hxg5+ {[%clk
0:00:05.8]} 46... hxg5 {[%clk 0:00:05]} 47. Kg4 {[%clk 0:00:06.1]} 47... Nc5
{[%clk 0:00:05.5]} 48. Bb1 {[%clk 0:00:06.2]} 48... Nd7 {[%clk 0:00:05.8]} 49.
Bc2 {[%clk 0:00:06.1]} 49... Ne5+ {[%clk 0:00:06.2]} 50. Kg3 {[%clk 0:00:05.9]}
50... Ke7 {[%clk 0:00:06.4]} 51. Ba4 {[%clk 0:00:04.7]} 51... Kd6 {[%clk
0:00:06.5]} 52. Kf2 {[%clk 0:00:05]} 52... Kc5 {[%clk 0:00:06.1]} 53. Ke3 {[%clk
0:00:04.7]} 53... Ng4+ {[%clk 0:00:06.2]} 54. Kf3 {[%clk 0:00:04.6]} 54... Ne5+
{[%clk 0:00:06.5]} 55. Ke3 {[%clk 0:00:05.1]} 55... Kc4 {[%clk 0:00:05.8]} 56.
Bd1 {[%clk 0:00:04.8]} 56... f6 {[%clk 0:00:05.4]} 57. Be2+ {[%clk 0:00:05.1]}
57... Kc3 {[%clk 0:00:05.7]} 58. Bd1 {[%clk 0:00:05.5]} 58... Nc4+ {[%clk
0:00:05.3]} 59. Kf2 {[%clk 0:00:04.2]} 59... Kd4 {[%clk 0:00:05]} 60. Bc2 {[%clk
0:00:04.6]} 60... Nd2 {[%clk 0:00:04.8]} 61. Kg3 {[%clk 0:00:04.9]} 61... Nxe4+
{[%clk 0:00:04.1]} 62. Kg4 {[%clk 0:00:05.5]} 62... Ke5 {[%clk 0:00:02.9]} 63.
Bb1 {[%clk 0:00:03.4]} 63... Nd6 {[%clk 0:00:03.1]} 64. Kh5 {[%clk 0:00:03.3]}
64... Nxf5 {[%clk 0:00:02.8]} 65. Kg6 {[%clk 0:00:03.9]} 65... Ne7+ {[%clk
0:00:03.2]} 66. Kh5 {[%clk 0:00:03.7]} 66... Nd5 {[%clk 0:00:04.1]} 67. Kg4
{[%clk 0:00:03.7]} 67... Nf4 {[%clk 0:00:05]} 68. Bc2 {[%clk 0:00:03.2]} 68...
Ne6 {[%clk 0:00:05.9]} 69. Bb1 {[%clk 0:00:03.5]} 69... Nc7 {[%clk 0:00:06.8]}
70. Bc2 {[%clk 0:00:03.5]} 70... Nd5 {[%clk 0:00:07.7]} 71. Bb1 {[%clk
0:00:03.8]} 71... Ne7 {[%clk 0:00:08.6]} 72. Bc2 {[%clk 0:00:03.9]} 72... Ng8
{[%clk 0:00:09.3]} 73. Bd3 {[%clk 0:00:03.9]} 73... Nh6+ {[%clk 0:00:09.8]} 74.
Kh5 {[%clk 0:00:04.3]} 74... Nf5 {[%clk 0:00:10.1]} 75. Kg4 {[%clk 0:00:04.5]}
75... Ne3+ {[%clk 0:00:10.4]} 76. Kf3 {[%clk 0:00:04.8]} 76... Nd1 {[%clk
0:00:08.5]} 77. Kg4 {[%clk 0:00:04.1]} 77... Nf2+ {[%clk 0:00:05.8]} 78. Kf3
{[%clk 0:00:04.5]} 78... Nxd3 {[%clk 0:00:06.7]} 0-1

[Event "*** Titled Tuesday Blitz"]
[Site "Chess.com"]
[Date "2020.05.05"]
[Round "7"]
[White "Gabrielian_Artur"]
[Black "Indianlad"]
[Result "0-1"]
[WhiteElo "2720"]
[BlackElo "2916"]
[TimeControl "180+1"]
[EndTime "11:21:01 PDT"]
[Termination "Indianlad won on time"]

1. e4 {[%clk 0:03:00.9]} 1... c5 {[%clk 0:03:00.6]} 2. Nc3 {[%clk 0:03:00.6]}
2... d6 {[%clk 0:03:00.4]} 3. d4 {[%clk 0:02:59.8]} 3... cxd4 {[%clk 0:03:00]}
4. Qxd4 {[%clk 0:03:00.1]} 4... Nc6 {[%clk 0:03:00.3]} 5. Qd2 {[%clk 0:03:00.2]}
5... g6 {[%clk 0:03:00.9]} 6. b3 {[%clk 0:03:00.4]} 6... Bh6 {[%clk 0:02:54.1]}
7. f4 {[%clk 0:03:00.2]} 7... Nf6 {[%clk 0:02:54.7]} 8. Bb2 {[%clk 0:02:58.9]}
8... e5 {[%clk 0:02:55.4]} 9. g3 {[%clk 0:02:57.9]} 9... O-O {[%clk 0:02:55.3]}
10. O-O-O {[%clk 0:02:58]} 10... Re8 {[%clk 0:02:54.2]} 11. Nf3 {[%clk
0:02:54.1]} 11... Bg4 {[%clk 0:02:27.1]} 12. Be2 {[%clk 0:02:48]} 12... Rc8
{[%clk 0:02:20.5]} 13. Kb1 {[%clk 0:02:41.1]} 13... Bxf3 {[%clk 0:02:15.4]} 14.
Bxf3 {[%clk 0:02:40.9]} 14... Nd4 {[%clk 0:02:16]} 15. Bg2 {[%clk 0:02:40.2]}
15... b5 {[%clk 0:02:15.7]} 16. Rc1 {[%clk 0:02:26.4]} 16... Qa5 {[%clk
0:02:15.6]} 17. Rhd1 {[%clk 0:02:22.5]} 17... b4 {[%clk 0:02:15.6]} 18. Ne2
{[%clk 0:01:30.4]} 18... Nb5 {[%clk 0:02:11]} 19. Qd3 {[%clk 0:01:19.5]} 19...
Rc6 {[%clk 0:02:03.9]} 20. c4 {[%clk 0:01:11.1]} 20... Na3+ {[%clk 0:01:58.2]}
21. Bxa3 {[%clk 0:01:05.6]} 21... Qxa3 {[%clk 0:01:53.8]} 22. Rc2 {[%clk
0:01:05.8]} 22... Nd7 {[%clk 0:01:43.5]} 23. Qd5 {[%clk 0:00:59.1]} 23... Ra6
{[%clk 0:01:43.7]} 24. Qb5 {[%clk 0:00:49.8]} 24... Re7 {[%clk 0:01:37]} 25. c5
{[%clk 0:00:34.8]} 25... Nxc5 {[%clk 0:01:24.6]} 26. Nc1 {[%clk 0:00:33.4]}
26... exf4 {[%clk 0:01:21.5]} 27. Rxd6 {[%clk 0:00:29.1]} 27... Rxd6 {[%clk
0:01:20.4]} 28. Qb8+ {[%clk 0:00:28.7]} 28... Bf8 {[%clk 0:01:09.9]} 29. Qxd6
{[%clk 0:00:28.5]} 29... Rxe4 {[%clk 0:00:46.8]} 30. Qd1 {[%clk 0:00:25.1]}
30... Re3 {[%clk 0:00:37]} 31. Bd5 {[%clk 0:00:23.3]} 31... Rc3 {[%clk
0:00:37.7]} 32. Bc4 {[%clk 0:00:16.1]} 32... Rxc2 {[%clk 0:00:35.4]} 33. Qxc2
{[%clk 0:00:16.3]} 33... fxg3 {[%clk 0:00:33.3]} 34. hxg3 {[%clk 0:00:16.7]}
34... Qa5 {[%clk 0:00:33.7]} 35. Qf2 {[%clk 0:00:15.8]} 35... Qc7 {[%clk
0:00:33.7]} 36. Ne2 {[%clk 0:00:15.9]} 36... Qe7 {[%clk 0:00:21.4]} 37. Nf4
{[%clk 0:00:14.9]} 37... Ne4 {[%clk 0:00:19.7]} 38. Qd4 {[%clk 0:00:11.9]} 38...
Bg7 {[%clk 0:00:20.1]} 39. Qd3 {[%clk 0:00:09]} 39... Nc3+ {[%clk 0:00:20]} 40.
Kc2 {[%clk 0:00:09]} 40... Be5 {[%clk 0:00:18.9]} 41. Nd5 {[%clk 0:00:08.9]}
41... Nxd5 {[%clk 0:00:18.6]} 42. Bxd5 {[%clk 0:00:09.1]} 42... Kg7 {[%clk
0:00:17.8]} 43. g4 {[%clk 0:00:09.2]} 43... a5 {[%clk 0:00:16.6]} 44. Bc4 {[%clk
0:00:09.4]} 44... Qd6 {[%clk 0:00:15.1]} 45. Qf3 {[%clk 0:00:08.6]} 45... Qf6
{[%clk 0:00:15.3]} 46. Qd5 {[%clk 0:00:08.6]} 46... Qf2+ {[%clk 0:00:15.1]} 47.
Kd1 {[%clk 0:00:08.7]} 47... Bc3 {[%clk 0:00:14.3]} 48. g5 {[%clk 0:00:06.3]}
48... h6 {[%clk 0:00:12.4]} 49. gxh6+ {[%clk 0:00:06.6]} 49... Kxh6 {[%clk
0:00:13.3]} 50. Qh1+ {[%clk 0:00:06.7]} 50... Kg7 {[%clk 0:00:13.3]} 51. Qd5
{[%clk 0:00:07.5]} 51... Kh6 {[%clk 0:00:11.4]} 52. Qh1+ {[%clk 0:00:07.4]}
52... Kg5 {[%clk 0:00:12.1]} 53. Qd5+ {[%clk 0:00:07.9]} 53... f5 {[%clk
0:00:11.6]} 54. Qd8+ {[%clk 0:00:08.1]} 54... Bf6 {[%clk 0:00:07.1]} 55. Qd3
{[%clk 0:00:08.1]} 55... Qd4 {[%clk 0:00:07.6]} 56. Qxd4 {[%clk 0:00:08.1]}
56... Bxd4 {[%clk 0:00:08.5]} 57. Bf7 {[%clk 0:00:08.7]} 57... Kf6 {[%clk
0:00:08.7]} 58. Be8 {[%clk 0:00:09]} 58... g5 {[%clk 0:00:09.3]} 59. Ke2 {[%clk
0:00:09.5]} 59... g4 {[%clk 0:00:09.9]} 60. Bd7 {[%clk 0:00:09.9]} 60... Kg5
{[%clk 0:00:09.9]} 61. Kd3 {[%clk 0:00:10.4]} 61... Bb6 {[%clk 0:00:09.2]} 62.
Bc8 {[%clk 0:00:09.3]} 62... Bd8 {[%clk 0:00:08]} 63. Bd7 {[%clk 0:00:08.9]}
63... Kf4 {[%clk 0:00:08.6]} 64. Bc8 {[%clk 0:00:08.7]} 64... Ke5 {[%clk
0:00:08.2]} 65. Bd7 {[%clk 0:00:08.2]} 65... Bb6 {[%clk 0:00:09.1]} 66. Bc8
{[%clk 0:00:07.6]} 66... Kf6 {[%clk 0:00:08.5]} 67. Bd7 {[%clk 0:00:07.3]} 67...
Kg5 {[%clk 0:00:09.2]} 68. Bc8 {[%clk 0:00:06.9]} 68... f4 {[%clk 0:00:09.8]}
69. Ke4 {[%clk 0:00:06.8]} 69... f3 {[%clk 0:00:10.4]} 70. Bd7 {[%clk
0:00:06.6]} 70... Kh4 {[%clk 0:00:10.9]} 71. Kf4 {[%clk 0:00:03.9]} 71... Bc7+
{[%clk 0:00:11.5]} 72. Ke4 {[%clk 0:00:03.7]} 72... Kg3 {[%clk 0:00:11.1]} 73.
Bc8 {[%clk 0:00:04]} 73... Bb8 {[%clk 0:00:11.3]} 74. Bd7 {[%clk 0:00:03.6]}
74... f2 {[%clk 0:00:11.6]} 75. Bb5 {[%clk 0:00:03.6]} 75... Kg2 {[%clk
0:00:12.1]} 0-1

[Event "*** Titled Tuesday Blitz"]
[Site "Chess.com"]
[Date "2020.05.05"]
[Round "7"]
[White "Vesper2018"]
[Black "GMartin_Petrov"]
[Result "0-1"]
[WhiteElo "2177"]
[BlackElo "2614"]
[TimeControl "180+1"]
[EndTime "11:21:08 PDT"]
[Termination "GMartin_Petrov won on time"]

1. e4 {[%clk 0:03:00.2]} 1... c5 {[%clk 0:02:59.6]} 2. Nf3 {[%clk 0:03:00.1]}
2... d6 {[%clk 0:02:59.3]} 3. d4 {[%clk 0:03:00.3]} 3... cxd4 {[%clk 0:03:00.2]}
4. Nxd4 {[%clk 0:03:00.6]} 4... Nf6 {[%clk 0:03:00.8]} 5. Nc3 {[%clk 0:03:01]}
5... a6 {[%clk 0:03:00.6]} 6. h3 {[%clk 0:03:00.8]} 6... e5 {[%clk 0:03:00]} 7.
Nde2 {[%clk 0:03:01]} 7... b5 {[%clk 0:02:59.9]} 8. g4 {[%clk 0:03:01.1]} 8...
b4 {[%clk 0:02:57.9]} 9. Nd5 {[%clk 0:03:00.8]} 9... Nxd5 {[%clk 0:02:57.6]} 10.
Qxd5 {[%clk 0:02:59.7]} 10... Ra7 {[%clk 0:02:58.2]} 11. Be3 {[%clk 0:02:59.8]}
11... Be6 {[%clk 0:02:57.7]} 12. Qd2 {[%clk 0:02:58.9]} 12... Rd7 {[%clk
0:02:57.2]} 13. Qxb4 {[%clk 0:02:48.4]} 13... d5 {[%clk 0:02:56.4]} 14. Qa4
{[%clk 0:02:47.5]} 14... d4 {[%clk 0:02:55.2]} 15. Bd2 {[%clk 0:02:46.6]} 15...
Be7 {[%clk 0:02:49]} 16. Ng3 {[%clk 0:02:35.1]} 16... O-O {[%clk 0:02:47]} 17.
Bd3 {[%clk 0:02:34.8]} 17... Rb7 {[%clk 0:02:35.8]} 18. b3 {[%clk 0:02:11.2]}
18... Nd7 {[%clk 0:02:32.7]} 19. Qa5 {[%clk 0:02:00]} 19... Qb8 {[%clk
0:01:49.4]} 20. Nf5 {[%clk 0:01:55.8]} 20... Bd8 {[%clk 0:01:40.2]} 21. Qa3
{[%clk 0:01:54.7]} 21... g6 {[%clk 0:01:37]} 22. Nh6+ {[%clk 0:01:46.4]} 22...
Kg7 {[%clk 0:01:35.7]} 23. O-O {[%clk 0:01:44.7]} 23... Nf6 {[%clk 0:01:19.7]}
24. Nf5+ {[%clk 0:01:27.5]} 24... Kg8 {[%clk 0:01:05.6]} 25. Nh6+ {[%clk
0:01:24]} 25... Kg7 {[%clk 0:01:04.4]} 26. Qc1 {[%clk 0:01:21.2]} 26... Be7
{[%clk 0:00:57.8]} 27. f4 {[%clk 0:01:13.4]} 27... exf4 {[%clk 0:00:46.8]} 28.
Bxf4 {[%clk 0:01:13.4]} 28... Bd6 {[%clk 0:00:46.3]} 29. Nf5+ {[%clk 0:00:55]}
29... gxf5 {[%clk 0:00:44.1]} 30. Bxd6 {[%clk 0:00:52.5]} 30... Qxd6 {[%clk
0:00:32.5]} 31. Qg5+ {[%clk 0:00:52.2]} 31... Kh8 {[%clk 0:00:32.5]} 32. Qxf6+
{[%clk 0:00:52.4]} 32... Kg8 {[%clk 0:00:32.4]} 33. Rf3 {[%clk 0:00:42.7]} 33...
fxg4 {[%clk 0:00:25.6]} 34. hxg4 {[%clk 0:00:37.8]} 34... Qe7 {[%clk 0:00:25.4]}
35. Qxd4 {[%clk 0:00:30.9]} 35... Rd8 {[%clk 0:00:23.8]} 36. Qf2 {[%clk
0:00:30.1]} 36... Kh8 {[%clk 0:00:19.8]} 37. g5 {[%clk 0:00:29.7]} 37... Qxg5+
{[%clk 0:00:17.5]} 38. Rg3 {[%clk 0:00:29.8]} 38... Qe5 {[%clk 0:00:16.9]} 39.
Rf1 {[%clk 0:00:29.8]} 39... Rbb8 {[%clk 0:00:16]} 40. Qf6+ {[%clk 0:00:24]}
40... Qxf6 {[%clk 0:00:16.2]} 41. Rxf6 {[%clk 0:00:24.2]} 41... Rg8 {[%clk
0:00:16.8]} 42. Rxg8+ {[%clk 0:00:21.1]} 42... Rxg8+ {[%clk 0:00:17.7]} 43. Kh2
{[%clk 0:00:21.6]} 43... a5 {[%clk 0:00:17.8]} 44. Rf4 {[%clk 0:00:20.2]} 44...
Rg5 {[%clk 0:00:17.6]} 45. c4 {[%clk 0:00:17.5]} 45... Kg7 {[%clk 0:00:17.7]}
46. a3 {[%clk 0:00:17.1]} 46... Kf8 {[%clk 0:00:14.6]} 47. b4 {[%clk 0:00:17.2]}
47... Ke7 {[%clk 0:00:15]} 48. Rf1 {[%clk 0:00:13.3]} 48... Kd6 {[%clk
0:00:14.5]} 49. c5+ {[%clk 0:00:12.2]} 49... Kc7 {[%clk 0:00:14.7]} 50. Rc1
{[%clk 0:00:11.5]} 50... axb4 {[%clk 0:00:14.2]} 51. axb4 {[%clk 0:00:11.4]}
51... f5 {[%clk 0:00:12.7]} 52. b5 {[%clk 0:00:09]} 52... f4 {[%clk 0:00:11]}
53. b6+ {[%clk 0:00:08.6]} 53... Kb7 {[%clk 0:00:11.2]} 54. Be2 {[%clk
0:00:05.9]} 54... Re5 {[%clk 0:00:08.8]} 55. Kg2 {[%clk 0:00:05]} 55... Bd7
{[%clk 0:00:07.8]} 56. Kf2 {[%clk 0:00:04.9]} 56... Bc6 {[%clk 0:00:07.8]} 57.
Bf3 {[%clk 0:00:05.3]} 57... Bxe4 {[%clk 0:00:04.8]} 58. Re1 {[%clk 0:00:04.9]}
58... Rxc5 {[%clk 0:00:03]} 59. Bxe4+ {[%clk 0:00:03.8]} 59... Kxb6 {[%clk
0:00:03.9]} 60. Rh1 {[%clk 0:00:03.1]} 60... Rc3 {[%clk 0:00:03.5]} 61. Rxh7
{[%clk 0:00:02.6]} 61... Kc5 {[%clk 0:00:03.8]} 62. Bf3 {[%clk 0:00:02.7]} 62...
Kd4 {[%clk 0:00:04.2]} 63. Be2 {[%clk 0:00:03]} 63... Re3 {[%clk 0:00:03.6]} 64.
Rd7+ {[%clk 0:00:02.9]} 64... Ke4 {[%clk 0:00:04.1]} 65. Re7+ {[%clk 0:00:02.9]}
65... Kd4 {[%clk 0:00:04.6]} 66. Rf7 {[%clk 0:00:03.3]} 66... Ke5 {[%clk
0:00:04.9]} 67. Rf8 {[%clk 0:00:03.8]} 67... Ke4 {[%clk 0:00:05]} 68. Rf7 {[%clk
0:00:03.8]} 68... Ke5 {[%clk 0:00:05.2]} 69. Bf3 {[%clk 0:00:04.4]} 69... Kd4
{[%clk 0:00:05]} 70. Rxf4+ {[%clk 0:00:04]} 70... Kd3 {[%clk 0:00:05.5]} 71. Rf8
{[%clk 0:00:03]} 71... Re7 {[%clk 0:00:05.7]} 72. Rd8+ {[%clk 0:00:03]} 72...
Kc3 {[%clk 0:00:06.2]} 73. Be2 {[%clk 0:00:03.1]} 73... Kb2 {[%clk 0:00:05.6]}
74. Ke1 {[%clk 0:00:03.1]} 74... Rc7 {[%clk 0:00:05.1]} 75. Kd2 {[%clk
0:00:03.1]} 75... Ka3 {[%clk 0:00:05.5]} 76. Rb8 {[%clk 0:00:02.6]} 76... Ka4
{[%clk 0:00:05.2]} 77. Bd3 {[%clk 0:00:03]} 77... Rg7 {[%clk 0:00:02.3]} 78. Kc3
{[%clk 0:00:03]} 78... Rg5 {[%clk 0:00:02.1]} 79. Ra8+ {[%clk 0:00:01.8]} 79...
Ra5 {[%clk 0:00:01.1]} 80. Bc2+ {[%clk 0:00:01.8]} 80... Kb5 {[%clk 0:00:01.7]}
81. Bd3+ {[%clk 0:00:02.3]} 81... Ka4 {[%clk 0:00:02.2]} 82. Rb8 {[%clk
0:00:02.8]} 82... Ra7 {[%clk 0:00:01.8]} 83. Rb1 {[%clk 0:00:02.7]} 83... Rc7+
{[%clk 0:00:02.2]} 84. Bc4 {[%clk 0:00:02.6]} 84... Ka5 {[%clk 0:00:02.3]} 85.
Rb5+ {[%clk 0:00:02]} 85... Ka4 {[%clk 0:00:02]} 86. Rb8 {[%clk 0:00:02.2]}
86... Ka5 {[%clk 0:00:02]} 87. Rb4 {[%clk 0:00:01.1]} 87... Rc6 {[%clk
0:00:01.4]} 0-1